Workbook

Sheet Graphs
B1: Level 2 Statistics - Graphs Created by Mr.Lafferty@mathsrevision.com
B7: Q1. The data shows the colour of cars sold one month.
AJ8: Red | AK8: =(ROUND(RAND()*(20-10)+10,0)) -> 17
C9: How many more green than red cars were sold. | T9: answer | AG9: =AK10-AK8 -> 6 | AJ9: Blue | AK9: =(ROUND(RAND()*(20-13)+13,0)) -> 16
AJ10: Green | AK10: =(ROUND(RAND()*(25-21)+21,0)) -> 23
C11: How many fewer black than blue cars were sold. | T11: answer | AG11: =AK9-AK11 -> 4 | AJ11: Black | AK11: =(ROUND(RAND()*(12-6)+6,0)) -> 12
AJ12: White | AK12: =(ROUND(RAND()*(10-2)+2,0)) -> 4
C13: How many cars were sold altogether. | T13: answer | AG13: =SUM(AK8:AL12) -> 72
B32: Q2. The data shows the type of ice creams sold over a week.
AJ34: Vanilla | AK34: =(ROUND(RAND()*(20-10)+10,0)) -> 16
C35: How many more mint than vanilla ice cream were sold. | T35: answer | AG35: =AK36-AK34 -> 6 | AJ35: Strawberry | AK35: =(ROUND(RAND()*(20-13)+13,0)) -> 18
AJ36: Mint | AK36: =(ROUND(RAND()*(25-21)+21,0)) -> 22
C37: How many fewer chocolate ice creams were sold | T37: answer | AG37: =AK35-AK37 -> 12 | AJ37: Chocolate | AK37: =(ROUND(RAND()*(12-6)+6,0)) -> 6
C38: than strawberry | AJ38: Raspberry | AK38: =(ROUND(RAND()*(10-2)+2,0)) -> 2
C39: How many ice creams were sold altogether. | T39: answer | AG39: =SUM(AK34:AL38) -> 64
B57: Q3. Data was collected on what colour of eyes pupils had.
D58: ="In total "&AK58&" pupils were surveyed." -> In total 660 pupils were surveyed. | AK58: =(ROUND(RAND()*(45-15)+15,0)*10)*2 -> 660
AJ59: Blue | AK59: =(ROUND(RAND()*(4-1)+1,0)*10)*AK58/2/100 -> 33
C60: How many pupils had blue eyes. | T60: answer | AG60: =AK59 -> 33 | AJ60: Brown | AK60: =(ROUND(RAND()*(4-1)+1,0)*10)*AK58/100 -> 132
AJ61: Green | AK61: =AK58-AK60-AK59 -> 495
C62: How many pupils had brown eyes. | T62: answer | AG62: =AK60 -> 132
C64: How many pupils had green eyes. | T64: answer | AG64: =AK61 -> 495
B83: Q4. The line graph shows the expenditure and income for a company.
AJ84: Year | AK84: Income | AL84: Expenditure
AJ85: 2000 | AK85: =(ROUND(RAND()*(20-15)+15,0)) -> 16 | AL85: =(ROUND(RAND()*(13-10)+10,0)) -> 11
C86: How much profit did the company make in 2003. | T86: answer | AG86: =(AK88-AL88)*1000 -> 7000 | AJ86: 2001 | AK86: =(ROUND(RAND()*(35-26)+26,0)) -> 30 | AL86: =(ROUND(RAND()*(25-20)+20,0)) -> 23
AJ87: 2002 | AK87: =(ROUND(RAND()*(40-35)+35,0)) -> 38 | AL87: =(ROUND(RAND()*(50-46)+46,0)) -> 49
C88: What year did the company make a loss. | T88: answer | AG88: 2002 | AJ88: 2003 | AK88: =(ROUND(RAND()*(55-45)+45,0)) -> 45 | AL88: =(ROUND(RAND()*(40-35)+35,0)) -> 38
AJ89: 2004 | AK89: =(ROUND(RAND()*(70-67)+67,0)) -> 68 | AL89: =(ROUND(RAND()*(65-60)+60,0)) -> 62
C90: How much profit did the company make over the 5 years. | T90: answer | AG90: =((AK85-AL85)+(AK86-AL86)+(AK87-AL87)+(AK88-AL88)+(AK89-AL89))*1000 -> 14000
B111: Q5. The data shows the types of cake sold over 7 days.
AJ112: Eclairs | AK112: =(ROUND(RAND()*(200-100)+100,0)) -> 148
C113: How many more Ginger than Eclairs were sold. | T113: answer | AG113: =AK114-AK112 -> 63 | AJ113: Doughnut | AK113: =(ROUND(RAND()*(200-130)+130,0)) -> 165
AJ114: Ginger | AK114: =(ROUND(RAND()*(250-210)+210,0)) -> 211
C115: How many fewer Chocolate than Doughnuts were sold. | T115: answer | AG115: =AK113-AK115 -> 71 | AJ115: Chocolate | AK115: =(ROUND(RAND()*(120-60)+60,0)) -> 94
AJ116: Carrot | AK116: =(ROUND(RAND()*(100-20)+20,0)) -> 58
C117: How many cakes were sold altogether. | T117: answer | AG117: =SUM(AK112:AL116) -> 676
B137: Q6. The data shows the types of fruits sold over a week.
AJ138: Apple | AK138: =(ROUND(RAND()*(200-100)+100,0)) -> 117
C139: How many more bananas than apples were sold. | T139: answer | AG139: =AK140-AK138 -> 102 | AJ139: Orange | AK139: =(ROUND(RAND()*(200-130)+130,0)) -> 183
AJ140: Banana | AK140: =(ROUND(RAND()*(250-210)+210,0)) -> 219
C141: How many fewer pears than oranges were sold. | T141: answer | AG141: =AK139-AK141 -> 116 | AJ141: Pear | AK141: =(ROUND(RAND()*(120-60)+60,0)) -> 67
AJ142: Melon | AK142: =(ROUND(RAND()*(100-20)+20,0)) -> 95
C143: How many pieces of fruit were sold altogether. | T143: answer | AG143: =SUM(AK138:AL142) -> 681
B162: Q7. Data was collected on what colour of hair pupils had.
D163: ="In total "&AK163&" pupils were surveyed." -> In total 320 pupils were surveyed. | AK163: =(ROUND(RAND()*(45-15)+15,0)*10)*2 -> 320
AJ164: Brown | AK164: =(ROUND(RAND()*(4-1)+1,0)*10)*AK163/2/100 -> 32
C165: How many pupils had brown hair. | T165: answer | AG165: =AK164 -> 32 | AJ165: Black | AK165: =(ROUND(RAND()*(4-1)+1,0)*10)*AK163/100 -> 96
AJ166: Blonde | AK166: =AK163-AK165-AK164 -> 192
C167: How many pupils had black hair. | T167: answer | AG167: =AK165 -> 96
C169: How many pupils had blonde hair. | T169: answer | AG169: =AK166 -> 192
B189: Q8. The line graph shows the expenditure and income for a company.
AJ190: Year | AK190: Income | AL190: Expenditure
AJ191: 1998 | AK191: =(ROUND(RAND()*(200-150)+150,0)) -> 150 | AL191: =(ROUND(RAND()*(130-100)+100,0)) -> 111
C192: How much profit did the company make in 2002. | T192: answer | AG192: =(AK194-AL194)*1000 -> 142000 | AJ192: 1999 | AK192: =(ROUND(RAND()*(350-260)+260,0)) -> 301 | AL192: =(ROUND(RAND()*(250-200)+200,0)) -> 220
AJ193: 2000 | AK193: =(ROUND(RAND()*(400-350)+350,0)) -> 374 | AL193: =(ROUND(RAND()*(500-460)+460,0)) -> 481
C194: What year did the company make a loss. | T194: answer | AG194: 2002 | AJ194: 2001 | AK194: =(ROUND(RAND()*(550-450)+450,0)) -> 513 | AL194: =(ROUND(RAND()*(400-350)+350,0)) -> 371
AJ195: 2002 | AK195: =(ROUND(RAND()*(700-670)+670,0)) -> 678 | AL195: =(ROUND(RAND()*(650-600)+600,0)) -> 626
C196: How much profit did the company make over the 5 years. | T196: answer | AG196: =((AK191-AL191)+(AK192-AL192)+(AK193-AL193)+(AK194-AL194)+(AK195-AL195))*1000 -> 207000

Sheet Constructing_Graphs
B1: Level 2 Statistics - Graphs Created by Mr.Lafferty@mathsrevision.com
B7: Q1. The data shown opposite indicates the number of different coloured car sold one month. | AJ7: Colour | AK7: Total
AJ8: Red | AK8: =(ROUND(RAND()*(20-10)+10,0)) -> 15
D9: Construct a bar graph to illustrate this information. | AJ9: Blue | AK9: =(ROUND(RAND()*(20-13)+13,0)) -> 18
AJ10: Green | AK10: =(ROUND(RAND()*(25-21)+21,0)) -> 24
AJ11: Black | AK11: =(ROUND(RAND()*(12-6)+6,0)) -> 12
AJ12: White | AK12: =(ROUND(RAND()*(10-2)+2,0)) -> 5
B32: Q2. Data was collected on what colour of eyes pupils had.
C33: In total | F33: =(ROUND(RAND()*(45-15)+15,0)*10)*2 -> 440 | H33: pupils were surveyed. | AJ33: Colour | AK33: Totals
AJ34: Blue | AK34: =(ROUND(RAND()*(4-1)+1,0)*10)*F33/2/100 -> 44
AJ35: Brown | AK35: =(ROUND(RAND()*(4-1)+1,0)*10)*F33/100 -> 88
AJ36: Green | AK36: =F33-AK35-AK34 -> 308
D38: Construct a pie chart to illustrate this infomation.
D39: Indicate the percentage each colour is of the total on your graph.
B59: Q3. The line graph shows the expenditure and income for a company.
AJ60: Year | AK60: Income | AL60: Expenditure
AJ61: 2000 | AK61: =(ROUND(RAND()*(20-15)+15,0)) -> 17 | AL61: =(ROUND(RAND()*(13-10)+10,0)) -> 11
AJ62: 2001 | AK62: =(ROUND(RAND()*(35-26)+26,0)) -> 32 | AL62: =(ROUND(RAND()*(25-20)+20,0)) -> 23
AJ63: 2002 | AK63: =(ROUND(RAND()*(40-35)+35,0)) -> 38 | AL63: =(ROUND(RAND()*(50-46)+46,0)) -> 48
D64: Construct a line graph to illustrate the information. | AJ64: 2003 | AK64: =(ROUND(RAND()*(55-45)+45,0)) -> 49 | AL64: =(ROUND(RAND()*(40-35)+35,0)) -> 38
AJ65: 2004 | AK65: =(ROUND(RAND()*(70-67)+67,0)) -> 69 | AL65: =(ROUND(RAND()*(65-60)+60,0)) -> 62
